[Event "Titled Tuesday Blitz June 21 Early 2022"]
[White "Bryakin, Mikhail"]
[Black "Fedoseev, Vladimir"]
[WhiteFideId "4165314"]
[BlackFideId "24130737"]
[WhiteElo "2417"]
[BlackElo "2726"]
[Result "0-1"]
[Round "05"]
[TimeControl "180+1"]
[Date "2022.06.21"]
[WhiteClock "0:01:21"]
[BlackClock "0:01:33"]

1. e4 {[%clk 0:02:55]}  c5 {[%clk 0:02:50]} 2. Nf3 {[%clk 0:02:51]}  d6 {[%clk 0:02:48]} 3. Bb5+ {[%clk 0:02:47]}  Nd7 {[%clk 0:02:47]} 4. c3 {[%clk 0:02:45]}  Nf6 {[%clk 0:02:46]} 5. Qe2 {[%clk 0:02:42]}  a6 {[%clk 0:02:45]} 6. Ba4 {[%clk 0:02:40]}  b5 {[%clk 0:02:45]} 7. Bc2 {[%clk 0:02:40]}  e5 {[%clk 0:02:45]} 8. d4 {[%clk 0:02:39]}  Bb7 {[%clk 0:02:45]} 9. d5 {[%clk 0:02:37]}  c4 {[%clk 0:02:41]} 10. O-O {[%clk 0:02:37]}  Be7 {[%clk 0:02:38]} 11. Nbd2 {[%clk 0:02:25]}  O-O {[%clk 0:02:32]} 12. Re1 {[%clk 0:02:26]}  Rc8 {[%clk 0:02:31]} 13. Nf1 {[%clk 0:02:26]}  Nc5 {[%clk 0:02:30]} 14. Ng3 {[%clk 0:02:26]}  g6 {[%clk 0:02:30]} 15. Bh6 {[%clk 0:02:25]}  Re8 {[%clk 0:02:29]} 16. h3 {[%clk 0:02:25]}  Bf8 {[%clk 0:02:25]} 17. Bxf8 {[%clk 0:02:18]}  Kxf8 {[%clk 0:02:23]} 18. Nh2 {[%clk 0:02:18]}  Ng8 {[%clk 0:02:21]} 19. Ng4 {[%clk 0:02:18]}  h5 {[%clk 0:02:19]} 20. Ne3 {[%clk 0:02:17]}  Qg5 {[%clk 0:02:19]} 21. Ngf1 {[%clk 0:02:12]}  Nf6 {[%clk 0:02:16]} 22. Nd2 {[%clk 0:02:09]}  Kg7 {[%clk 0:02:15]} 23. b4 {[%clk 0:02:06]}  cxb3 {[%clk 0:02:06]} 24. axb3 {[%clk 0:02:06]}  h4 {[%clk 0:02:04]} 25. b4 {[%clk 0:01:59]}  Ncd7 {[%clk 0:02:02]} 26. Ra3 {[%clk 0:01:59]}  Nh5 {[%clk 0:02:00]} 27. Qg4 {[%clk 0:01:59]}  Qxg4 {[%clk 0:01:57]} 28. hxg4 {[%clk 0:01:56]}  Nf4 {[%clk 0:01:57]} 29. g3 {[%clk 0:01:56]}  hxg3 {[%clk 0:01:56]} 30. fxg3 {[%clk 0:01:56]}  Nh3+ {[%clk 0:01:57]} 31. Kg2 {[%clk 0:01:56]}  Ng5 {[%clk 0:01:57]} 32. Nf3 {[%clk 0:01:55]}  Nxf3 {[%clk 0:01:51]} 33. Kxf3 {[%clk 0:01:56]}  Nb6 {[%clk 0:01:50]} 34. g5 {[%clk 0:01:50]}  Rh8 {[%clk 0:01:49]} 35. Bd1 {[%clk 0:01:26]}  Rh5 {[%clk 0:01:37]} 36. g4 {[%clk 0:01:23]}  Rh3+ {[%clk 0:01:34]} 37. Kg2 {[%clk 0:01:21]}  Rxe3 {[%clk 0:01:32]} 38. Rxe3 {[%clk 0:01:21]}  Nc4 {[%clk 0:01:33]} 0-1


[Site "https://www.chess.com"]

[Event "Titled Tuesday Blitz June 21 Early 2022"]
[White "Buscar, Michael"]
[Black "Tanaka, Taira Tyler"]
[WhiteFideId "2603616"]
[BlackFideId "7002351"]
[WhiteElo "2010"]
[BlackElo "2554"]
[Result "0-1"]
[Round "05"]
[TimeControl "180+1"]
[Date "2022.06.22"]
[WhiteClock "0:00:04"]
[BlackClock "0:00:20"]

1. d4 {[%clk 0:02:45]}  Nf6 {[%clk 0:03:00]} 2. Nf3 {[%clk 0:02:43]}  d5 {[%clk 0:02:58]} 3. g3 {[%clk 0:02:43]}  Bg4 {[%clk 0:02:55]} 4. Bg2 {[%clk 0:02:44]}  e6 {[%clk 0:02:55]} 5. O-O {[%clk 0:02:44]}  Nbd7 {[%clk 0:02:55]} 6. c4 {[%clk 0:02:43]}  c6 {[%clk 0:02:55]} 7. b3 {[%clk 0:02:43]}  Bd6 {[%clk 0:02:54]} 8. Bb2 {[%clk 0:02:43]}  O-O {[%clk 0:02:53]} 9. Nbd2 {[%clk 0:02:42]}  h6 {[%clk 0:02:53]} 10. Ne5 {[%clk 0:02:41]}  Bf5 {[%clk 0:02:52]} 11. Re1 {[%clk 0:02:35]}  Qc7 {[%clk 0:02:49]} 12. Nxd7 {[%clk 0:02:31]}  Qxd7 {[%clk 0:02:50]} 13. e4 {[%clk 0:02:31]}  dxe4 {[%clk 0:02:50]} 14. Nxe4 {[%clk 0:02:31]}  Nxe4 {[%clk 0:02:50]} 15. Bxe4 {[%clk 0:02:31]}  Bxe4 {[%clk 0:02:51]} 16. Rxe4 {[%clk 0:02:31]}  Be7 {[%clk 0:02:46]} 17. Qe2 {[%clk 0:02:21]}  Bf6 {[%clk 0:02:43]} 18. Rd1 {[%clk 0:02:20]}  Rfd8 {[%clk 0:02:40]} 19. Re3 {[%clk 0:02:10]}  a5 {[%clk 0:02:33]} 20. a3 {[%clk 0:02:01]}  b5 {[%clk 0:02:22]} 21. Red3 {[%clk 0:01:37]}  bxc4 {[%clk 0:01:49]} 22. bxc4 {[%clk 0:01:38]}  Rab8 {[%clk 0:01:49]} 23. Bc3 {[%clk 0:01:31]}  Qc7 {[%clk 0:01:38]} 24. Qd2 {[%clk 0:01:30]}  Ra8 {[%clk 0:01:29]} 25. Kg2 {[%clk 0:01:08]}  a4 {[%clk 0:01:23]} 26. Bb4 {[%clk 0:01:04]}  Rd7 {[%clk 0:01:22]} 27. d5 {[%clk 0:01:00]}  cxd5 {[%clk 0:01:21]} 28. cxd5 {[%clk 0:00:59]}  Qb7 {[%clk 0:01:20]} 29. Kg1 {[%clk 0:00:52]}  Rad8 {[%clk 0:01:19]} 30. d6 {[%clk 0:00:52]}  e5 {[%clk 0:01:03]} 31. Qc2 {[%clk 0:00:48]}  Qa6 {[%clk 0:01:01]} 32. Rd5 {[%clk 0:00:46]}  Rc8 {[%clk 0:00:59]} 33. Qf5 {[%clk 0:00:41]}  Rcd8 {[%clk 0:00:59]} 34. Rc1 {[%clk 0:00:27]}  Qb7 {[%clk 0:00:51]} 35. Rxe5 {[%clk 0:00:21]}  Bxe5 {[%clk 0:00:49]} 36. Qxe5 {[%clk 0:00:22]}  Qf3 {[%clk 0:00:46]} 37. Bc3 {[%clk 0:00:18]}  f6 {[%clk 0:00:44]} 38. Qe6+ {[%clk 0:00:18]}  Kh7 {[%clk 0:00:44]} 39. Bb4 {[%clk 0:00:17]}  Qh5 {[%clk 0:00:38]} 40. Rc7 {[%clk 0:00:14]}  Qb5 {[%clk 0:00:29]} 41. Rxd7 {[%clk 0:00:10]}  Rxd7 {[%clk 0:00:28]} 42. h4 {[%clk 0:00:11]}  h5 {[%clk 0:00:27]} 43. Qe4+ {[%clk 0:00:10]}  Kg8 {[%clk 0:00:27]} 44. Qe8+ {[%clk 0:00:10]}  Kh7 {[%clk 0:00:27]} 45. Kh2 {[%clk 0:00:10]}  Rb7 {[%clk 0:00:27]} 46. Qe4+ {[%clk 0:00:09]}  Kg8 {[%clk 0:00:27]} 47. Qe6+ {[%clk 0:00:09]}  Kh7 {[%clk 0:00:27]} 48. Qe4+ {[%clk 0:00:09]}  f5 {[%clk 0:00:27]} 49. Qe6 {[%clk 0:00:09]}  Qd7 {[%clk 0:00:26]} 50. Qe5 {[%clk 0:00:09]}  Qf7 {[%clk 0:00:25]} 51. Qf4 {[%clk 0:00:08]}  Rb5 {[%clk 0:00:23]} 52. Bc3 {[%clk 0:00:08]}  Rd5 {[%clk 0:00:23]} 53. Bb4 {[%clk 0:00:08]}  Rd3 {[%clk 0:00:21]} 54. Kg2 {[%clk 0:00:08]}  Qd5+ {[%clk 0:00:21]} 55. Kh2 {[%clk 0:00:08]}  Rd1 {[%clk 0:00:21]} 56. f3 {[%clk 0:00:05]}  Qa2+ {[%clk 0:00:20]} 57. Kh3 {[%clk 0:00:04]}  Rh1# {[%clk 0:00:20]} 0-1


[Site "https://www.chess.com"]

[Event "Titled Tuesday Blitz June 21 Early 2022"]
[White "Cherniaiev, Tykhon"]
[Black "Svane, Rasmus"]
[WhiteFideId "14182360"]
[BlackFideId "4657101"]
[WhiteElo "2289"]
[BlackElo "2674"]
[Result "1-0"]
[Round "05"]
[TimeControl "180+1"]
[Date "2022.06.21"]
[WhiteClock "0:00:04"]
[BlackClock "0:00:02"]

1. Nf3 {[%clk 0:03:00]}  d5 {[%clk 0:02:56]} 2. d4 {[%clk 0:03:00]}  Nf6 {[%clk 0:02:55]} 3. c4 {[%clk 0:03:00]}  e6 {[%clk 0:02:56]} 4. g3 {[%clk 0:03:00]}  Bb4+ {[%clk 0:02:51]} 5. Bd2 {[%clk 0:03:00]}  Be7 {[%clk 0:02:52]} 6. Qc2 {[%clk 0:03:01]}  O-O {[%clk 0:02:52]} 7. Bg2 {[%clk 0:03:01]}  c6 {[%clk 0:02:53]} 8. O-O {[%clk 0:03:01]}  a5 {[%clk 0:02:53]} 9. b3 {[%clk 0:03:01]}  Nbd7 {[%clk 0:02:53]} 10. Nc3 {[%clk 0:03:01]}  b6 {[%clk 0:02:45]} 11. e4 {[%clk 0:02:57]}  Ba6 {[%clk 0:02:45]} 12. Rfc1 {[%clk 0:02:30]}  dxc4 {[%clk 0:02:31]} 13. bxc4 {[%clk 0:02:29]}  Bxc4 {[%clk 0:02:32]} 14. e5 {[%clk 0:02:29]}  Nd5 {[%clk 0:02:23]} 15. Ne4 {[%clk 0:02:28]}  b5 {[%clk 0:02:22]} 16. Nfg5 {[%clk 0:02:22]}  h6 {[%clk 0:02:11]} 17. Nh3 {[%clk 0:02:11]}  Qb6 {[%clk 0:02:06]} 18. Rd1 {[%clk 0:02:08]}  c5 {[%clk 0:02:05]} 19. dxc5 {[%clk 0:02:03]}  Nxc5 {[%clk 0:02:06]} 20. Nf4 {[%clk 0:01:53]}  Rac8 {[%clk 0:02:01]} 21. Nd6 {[%clk 0:01:49]}  Bxd6 {[%clk 0:01:56]} 22. exd6 {[%clk 0:01:50]}  Qxd6 {[%clk 0:01:40]} 23. Bxa5 {[%clk 0:01:48]}  Qa6 {[%clk 0:01:36]} 24. Nxd5 {[%clk 0:01:40]}  exd5 {[%clk 0:01:19]} 25. Bb4 {[%clk 0:01:37]}  Rfd8 {[%clk 0:01:19]} 26. Qc3 {[%clk 0:01:07]}  Qg6 {[%clk 0:01:04]} 27. Bxc5 {[%clk 0:00:58]}  Rxc5 {[%clk 0:01:03]} 28. a4 {[%clk 0:00:57]}  bxa4 {[%clk 0:00:56]} 29. Rxa4 {[%clk 0:00:58]}  Rb8 {[%clk 0:00:55]} 30. Qd4 {[%clk 0:00:53]}  Rcb5 {[%clk 0:00:53]} 31. Be4 {[%clk 0:00:48]}  Qh5 {[%clk 0:00:41]} 32. Rxc4 {[%clk 0:00:44]}  dxe4 {[%clk 0:00:40]} 33. Re1 {[%clk 0:00:38]}  f5 {[%clk 0:00:40]} 34. Rc7 {[%clk 0:00:29]}  Qg6 {[%clk 0:00:40]} 35. Rec1 {[%clk 0:00:28]}  Kh7 {[%clk 0:00:39]} 36. R1c6 {[%clk 0:00:25]}  Rb1+ {[%clk 0:00:38]} 37. Rc1 {[%clk 0:00:15]}  Qg5 {[%clk 0:00:35]} 38. Qd1 {[%clk 0:00:10]}  Rxc1 {[%clk 0:00:26]} 39. Qxc1 {[%clk 0:00:11]}  Qg4 {[%clk 0:00:26]} 40. Rd7 {[%clk 0:00:05]}  Rb3 {[%clk 0:00:22]} 41. Qd1 {[%clk 0:00:04]}  Rf3 {[%clk 0:00:20]} 42. Kg2 {[%clk 0:00:05]}  f4 {[%clk 0:00:13]} 43. h3 {[%clk 0:00:04]}  Qf5 {[%clk 0:00:11]} 44. Qd4 {[%clk 0:00:04]}  Qg6 {[%clk 0:00:08]} 45. Rd6 {[%clk 0:00:04]}  Rxg3+ {[%clk 0:00:07]} 46. fxg3 {[%clk 0:00:04]}  Qxg3+ {[%clk 0:00:08]} 47. Kf1 {[%clk 0:00:04]}  Qxh3+ {[%clk 0:00:08]} 48. Kg1 {[%clk 0:00:04]}  Qg3+ {[%clk 0:00:06]} 49. Kf1 {[%clk 0:00:04]}  Qf3+ {[%clk 0:00:07]} 50. Kg1 {[%clk 0:00:04]}  Qg4+ {[%clk 0:00:06]} 51. Kf1 {[%clk 0:00:04]}  f3 {[%clk 0:00:07]} 52. Qf2 {[%clk 0:00:03]}  Qh3+ {[%clk 0:00:06]} 53. Ke1 {[%clk 0:00:03]}  Qh1+ {[%clk 0:00:06]} 54. Kd2 {[%clk 0:00:04]}  Qa1 {[%clk 0:00:03]} 55. Rd4 {[%clk 0:00:03]}  Qb2+ {[%clk 0:00:03]} 56. Ke3 {[%clk 0:00:04]}  Qc3+ {[%clk 0:00:02]} 57. Kxe4 {[%clk 0:00:04]}  Qc6+ {[%clk 0:00:02]} 58. Ke3 {[%clk 0:00:04]}  Qc3+ {[%clk 0:00:02]} 59. Rd3 {[%clk 0:00:05]}  Qe5+ {[%clk 0:00:02]} 60. Kxf3 {[%clk 0:00:05]}  Qf5+ {[%clk 0:00:03]} 61. Ke2 {[%clk 0:00:05]}  Qe4+ {[%clk 0:00:03]} 62. Qe3 {[%clk 0:00:05]}  Qg2+ {[%clk 0:00:03]} 63. Kd1 {[%clk 0:00:06]}  Qf1+ {[%clk 0:00:03]} 64. Kc2 {[%clk 0:00:07]}  Qf5 {[%clk 0:00:03]} 65. Qd4 {[%clk 0:00:04]}  h5 {[%clk 0:00:03]} 66. Qd5 {[%clk 0:00:04]}  Qg6 {[%clk 0:00:03]} 67. Kb2 {[%clk 0:00:03]}  Qf6+ {[%clk 0:00:03]} 68. Qd4 {[%clk 0:00:03]}  Qg6 {[%clk 0:00:03]} 69. Re3 {[%clk 0:00:03]}  Qf5 {[%clk 0:00:03]} 70. Qe4 {[%clk 0:00:03]}  Kg6 {[%clk 0:00:02]} 71. Rg3+ {[%clk 0:00:03]}  Kf6 {[%clk 0:00:03]} 72. Rf3 {[%clk 0:00:04]}  Qxf3 {[%clk 0:00:01]} 73. Qxf3+ {[%clk 0:00:04]}  Kg5 {[%clk 0:00:02]} 74. Kc3 {[%clk 0:00:04]} 1-0


[Site "https://www.chess.com"]

[Event "Titled Tuesday Blitz June 21 Early 2022"]
[White "Cramling Bellon, Anna"]
[Black "Ciuffoletti, Paolo"]
[WhiteFideId "32009232"]
[BlackFideId "807630"]
[WhiteElo "1905"]
[BlackElo "2143"]
[Result "1-0"]
[Round "05"]
[TimeControl "180+1"]
[Date "2022.06.22"]
[WhiteClock "0:00:03"]
[BlackClock "0:00:01"]

1. d4 {[%clk 0:02:57]}  d5 {[%clk 0:02:59]} 2. c4 {[%clk 0:02:49]}  c6 {[%clk 0:02:59]} 3. Nf3 {[%clk 0:02:49]}  Nf6 {[%clk 0:02:59]} 4. Nc3 {[%clk 0:02:49]}  dxc4 {[%clk 0:02:59]} 5. a4 {[%clk 0:02:48]}  e6 {[%clk 0:02:59]} 6. e4 {[%clk 0:02:39]}  Bb4 {[%clk 0:02:51]} 7. e5 {[%clk 0:02:19]}  Nd5 {[%clk 0:02:50]} 8. Qc2 {[%clk 0:02:18]}  b5 {[%clk 0:02:44]} 9. Bd2 {[%clk 0:02:09]}  f5 {[%clk 0:02:06]} 10. Nxd5 {[%clk 0:01:30]}  Bxd2+ {[%clk 0:02:01]} 11. Qxd2 {[%clk 0:01:09]}  Qxd5 {[%clk 0:01:36]} 12. axb5 {[%clk 0:00:45]}  cxb5 {[%clk 0:01:33]} 13. b3 {[%clk 0:00:31]}  cxb3 {[%clk 0:01:08]} 14. Rc1 {[%clk 0:00:31]}  O-O {[%clk 0:01:01]} 15. Rc5 {[%clk 0:00:31]}  Qe4+ {[%clk 0:01:00]} 16. Be2 {[%clk 0:00:28]}  Qb1+ {[%clk 0:00:54]} 17. Rc1 {[%clk 0:00:18]}  Qa2 {[%clk 0:00:52]} 18. O-O {[%clk 0:00:18]}  Bb7 {[%clk 0:00:49]} 19. Ra1 {[%clk 0:00:12]}  Qxd2 {[%clk 0:00:45]} 20. Nxd2 {[%clk 0:00:13]}  a6 {[%clk 0:00:28]} 21. Nxb3 {[%clk 0:00:13]}  Nd7 {[%clk 0:00:27]} 22. Rfc1 {[%clk 0:00:11]}  Rfc8 {[%clk 0:00:26]} 23. Nc5 {[%clk 0:00:08]}  Nxc5 {[%clk 0:00:25]} 24. dxc5 {[%clk 0:00:09]}  Bd5 {[%clk 0:00:25]} 25. Bf3 {[%clk 0:00:09]}  Bxf3 {[%clk 0:00:23]} 26. gxf3 {[%clk 0:00:10]}  Rc6 {[%clk 0:00:23]} 27. f4 {[%clk 0:00:08]}  Rac8 {[%clk 0:00:23]} 28. Kg2 {[%clk 0:00:08]}  Kf7 {[%clk 0:00:20]} 29. Kf3 {[%clk 0:00:08]}  g5 {[%clk 0:00:18]} 30. fxg5 {[%clk 0:00:07]}  Rxc5 {[%clk 0:00:18]} 31. Rxc5 {[%clk 0:00:06]}  Rxc5 {[%clk 0:00:18]} 32. Rxa6 {[%clk 0:00:06]}  Rxe5 {[%clk 0:00:18]} 33. Ra7+ {[%clk 0:00:04]}  Kg6 {[%clk 0:00:18]} 34. h4 {[%clk 0:00:05]}  Rc5 {[%clk 0:00:18]} 35. Re7 {[%clk 0:00:05]}  e5 {[%clk 0:00:16]} 36. Re6+ {[%clk 0:00:05]}  Kg7 {[%clk 0:00:15]} 37. Re7+ {[%clk 0:00:06]}  Kg8 {[%clk 0:00:13]} 38. Re8+ {[%clk 0:00:06]}  Kf7 {[%clk 0:00:13]} 39. Rb8 {[%clk 0:00:06]}  Rc3+ {[%clk 0:00:12]} 40. Kg2 {[%clk 0:00:06]}  Rc4 {[%clk 0:00:11]} 41. Rb7+ {[%clk 0:00:06]}  Kg6 {[%clk 0:00:11]} 42. Rb6+ {[%clk 0:00:06]}  Kh5 {[%clk 0:00:11]} 43. Rh6+ {[%clk 0:00:07]}  Kg4 {[%clk 0:00:11]} 44. Rxh7 {[%clk 0:00:08]}  f4 {[%clk 0:00:09]} 45. f3+ {[%clk 0:00:07]}  Kf5 {[%clk 0:00:09]} 46. Rf7+ {[%clk 0:00:06]}  Kg6 {[%clk 0:00:09]} 47. Rf6+ {[%clk 0:00:07]}  Kg7 {[%clk 0:00:09]} 48. Re6 {[%clk 0:00:06]}  Rc5 {[%clk 0:00:09]} 49. h5 {[%clk 0:00:05]}  b4 {[%clk 0:00:08]} 50. h6+ {[%clk 0:00:06]}  Kg8 {[%clk 0:00:05]} 51. g6 {[%clk 0:00:06]}  Rc8 {[%clk 0:00:05]} 52. Re7 {[%clk 0:00:05]}  b3 {[%clk 0:00:04]} 53. Rb7 {[%clk 0:00:06]}  Re8 {[%clk 0:00:02]} 54. Rxb3 {[%clk 0:00:06]}  Kh8 {[%clk 0:00:01]} 55. Rb7 {[%clk 0:00:05]}  Kg8 {[%clk 0:00:01]} 56. h7+ {[%clk 0:00:04]}  Kh8 {[%clk 0:00:01]} 57. Kf2 {[%clk 0:00:03]}  Rd8 {[%clk 0:00:01]} 58. Ke2 {[%clk 0:00:03]} 1-0


[Site "https://www.chess.com"]

[Event "Titled Tuesday Blitz June 21 Early 2022"]
[White "Curtis, John"]
[Black "Karas, Marek"]
[WhiteFideId "3200256"]
[BlackFideId "14928558"]
[WhiteElo "2203"]
[BlackElo "2271"]
[Result "0-1"]
[Round "05"]
[TimeControl "180+1"]
[Date "2022.06.22"]
[WhiteClock "0:00:17"]
[BlackClock "0:01:48"]

1. c4 {[%clk 0:03:00]}  e5 {[%clk 0:02:59]} 2. Nc3 {[%clk 0:03:00]}  Nf6 {[%clk 0:02:59]} 3. Nf3 {[%clk 0:02:59]}  Nc6 {[%clk 0:02:59]} 4. g3 {[%clk 0:02:59]}  Bb4 {[%clk 0:02:57]} 5. Nd5 {[%clk 0:02:58]}  Bc5 {[%clk 0:02:56]} 6. d3 {[%clk 0:02:49]}  O-O {[%clk 0:02:54]} 7. Bg2 {[%clk 0:02:49]}  h6 {[%clk 0:02:53]} 8. O-O {[%clk 0:02:48]}  d6 {[%clk 0:02:53]} 9. a3 {[%clk 0:02:36]}  a5 {[%clk 0:02:52]} 10. Bd2 {[%clk 0:02:28]}  Bg4 {[%clk 0:02:47]} 11. h3 {[%clk 0:02:14]}  Bf5 {[%clk 0:02:46]} 12. e4 {[%clk 0:01:55]}  Be6 {[%clk 0:02:43]} 13. b4 {[%clk 0:01:51]}  axb4 {[%clk 0:02:42]} 14. axb4 {[%clk 0:01:51]}  Rxa1 {[%clk 0:02:42]} 15. Qxa1 {[%clk 0:01:50]}  Bd4 {[%clk 0:02:42]} 16. Nxd4 {[%clk 0:01:39]}  Nxd4 {[%clk 0:02:43]} 17. Nxf6+ {[%clk 0:01:34]}  Qxf6 {[%clk 0:02:42]} 18. Be3 {[%clk 0:01:31]}  Nc2 {[%clk 0:02:32]} 19. Qa7 {[%clk 0:01:31]}  Nxb4 {[%clk 0:02:25]} 20. Qxb7 {[%clk 0:01:29]}  Nxd3 {[%clk 0:02:25]} 21. Qxc7 {[%clk 0:01:29]}  Qd8 {[%clk 0:02:25]} 22. Qxd8 {[%clk 0:01:22]}  Rxd8 {[%clk 0:02:26]} 23. Bb6 {[%clk 0:01:10]}  Rc8 {[%clk 0:02:22]} 24. Rd1 {[%clk 0:01:08]}  Bxc4 {[%clk 0:02:21]} 25. Bf1 {[%clk 0:01:06]}  Nb2 {[%clk 0:02:10]} 26. Rxd6 {[%clk 0:01:01]}  Bxf1 {[%clk 0:02:10]} 27. Kxf1 {[%clk 0:01:02]}  f6 {[%clk 0:02:09]} 28. Rd8+ {[%clk 0:01:00]}  Rxd8 {[%clk 0:02:09]} 29. Bxd8 {[%clk 0:01:01]}  Nc4 {[%clk 0:02:09]} 30. Ke2 {[%clk 0:01:00]}  Kf7 {[%clk 0:02:10]} 31. Bc7 {[%clk 0:00:58]}  Ke6 {[%clk 0:02:10]} 32. Bb8 {[%clk 0:00:59]}  Na5 {[%clk 0:02:07]} 33. Ba7 {[%clk 0:00:58]}  Nc6 {[%clk 0:02:08]} 34. Be3 {[%clk 0:00:58]}  h5 {[%clk 0:02:08]} 35. Kd3 {[%clk 0:00:58]}  g6 {[%clk 0:02:04]} 36. g4 {[%clk 0:00:58]}  hxg4 {[%clk 0:02:02]} 37. hxg4 {[%clk 0:00:58]}  Nb4+ {[%clk 0:01:59]} 38. Kc4 {[%clk 0:00:56]}  Nc6 {[%clk 0:01:57]} 39. Kd3 {[%clk 0:00:54]}  Nb8 {[%clk 0:01:56]} 40. f3 {[%clk 0:00:54]}  Nd7 {[%clk 0:01:57]} 41. Kc4 {[%clk 0:00:53]}  Kd6 {[%clk 0:01:56]} 42. Ba7 {[%clk 0:00:52]}  Kc6 {[%clk 0:01:56]} 43. Be3 {[%clk 0:00:51]}  Nf8 {[%clk 0:01:55]} 44. g5 {[%clk 0:00:51]}  f5 {[%clk 0:01:50]} 45. f4 {[%clk 0:00:47]}  exf4 {[%clk 0:01:47]} 46. Bxf4 {[%clk 0:00:47]}  fxe4 {[%clk 0:01:47]} 47. Kd4 {[%clk 0:00:47]}  Ne6+ {[%clk 0:01:44]} 48. Kxe4 {[%clk 0:00:46]}  Nxf4 {[%clk 0:01:43]} 49. Kxf4 {[%clk 0:00:46]}  Kd5 {[%clk 0:01:44]} 50. Kf3 {[%clk 0:00:40]}  Ke5 {[%clk 0:01:45]} 51. Kg4 {[%clk 0:00:39]}  Ke4 {[%clk 0:01:44]} 52. Kh4 {[%clk 0:00:39]}  Kf4 {[%clk 0:01:45]} 53. Kh3 {[%clk 0:00:39]}  Kf5 {[%clk 0:01:44]} 54. Kh4 {[%clk 0:00:38]}  Ke4 {[%clk 0:01:45]} 55. Kg4 {[%clk 0:00:38]}  Ke3 {[%clk 0:01:45]} 56. Kg3 {[%clk 0:00:38]}  Ke4 {[%clk 0:01:42]} 57. Kg4 {[%clk 0:00:38]}  Ke5 {[%clk 0:01:43]} 58. Kh4 {[%clk 0:00:32]}  Kf5 {[%clk 0:01:44]} 59. Kh3 {[%clk 0:00:32]}  Kxg5 {[%clk 0:01:43]} 60. Kg3 {[%clk 0:00:32]}  Kf5 {[%clk 0:01:43]} 61. Kf3 {[%clk 0:00:29]}  Ke6 {[%clk 0:01:42]} 62. Kg4 {[%clk 0:00:23]}  Kf6 {[%clk 0:01:42]} 63. Kf4 {[%clk 0:00:23]}  g5+ {[%clk 0:01:42]} 64. Kg4 {[%clk 0:00:22]}  Kg6 {[%clk 0:01:43]} 65. Kg3 {[%clk 0:00:22]}  Kf5 {[%clk 0:01:44]} 66. Kf3 {[%clk 0:00:22]}  g4+ {[%clk 0:01:45]} 67. Kg2 {[%clk 0:00:20]}  Kg5 {[%clk 0:01:45]} 68. Kg3 {[%clk 0:00:20]}  Kh5 {[%clk 0:01:46]} 69. Kg2 {[%clk 0:00:19]}  Kh4 {[%clk 0:01:46]} 70. Kh2 {[%clk 0:00:20]}  g3+ {[%clk 0:01:47]} 71. Kg2 {[%clk 0:00:20]}  Kg4 {[%clk 0:01:47]} 72. Kg1 {[%clk 0:00:20]}  Kf5 {[%clk 0:01:47]} 73. Kf1 {[%clk 0:00:19]}  Ke4 {[%clk 0:01:45]} 74. Ke2 {[%clk 0:00:18]}  Kf4 {[%clk 0:01:45]} 75. Ke1 {[%clk 0:00:17]}  Ke3 {[%clk 0:01:43]} 76. Kf1 {[%clk 0:00:16]}  Kf3 {[%clk 0:01:44]} 77. Kg1 {[%clk 0:00:16]}  g2 {[%clk 0:01:44]} 78. Kh2 {[%clk 0:00:17]}  Kf2 {[%clk 0:01:45]} 79. Kh3 {[%clk 0:00:18]}  g1=Q {[%clk 0:01:46]} 80. Kh4 {[%clk 0:00:17]}  Qg6 {[%clk 0:01:47]} 81. Kh3 {[%clk 0:00:17]}  Qg3# {[%clk 0:01:48]} 0-1


[Site "https://www.chess.com"]